bitfinex-derivatives/quotes_SOLF0:USTF0_20250819
["timestamp","ask_amount","ask_price","bid_price","bid_amount"]
[1755563129240,5.4747,182.57,182.49,3.03]
[1755563129447,3.06,182.59,182.49,3.03]
[1755563129850,4.01346384,182.63,182.49,3.03]
[1755563130051,3.06,182.63,182.49,3.03]
[1755563130243,3.06,182.63,182.54,0.04011539]
[1755563130556,3.06,182.61,182.54,0.04011539]
[1755563130737,3.06,182.59,182.54,0.04011539]
[1755563130942,150.63338548,182.64,182.54,0.04011539]
[1755563131245,3.06,182.57,182.54,0.04011539]
[1755563131444,3.06,182.62,182.54,0.04011539]
[1755563131645,3.06,182.6,182.54,0.04011539]
[1755563132049,150.63338548,182.64,182.54,0.04011539]
[1755563132050,4.01338548,182.64,182.54,0.04011539]
[1755563132551,3.06,182.64,182.54,0.04011539]
[1755563132754,3.06,182.64,182.55,5.4752]
[1755563132953,3.06,182.64,182.54,0.04011539]
[1755563133136,3.97459837,182.63,182.5,3.03]
[1755563133340,3.97444313,182.62,182.51,5.4765]
[1755563133537,3.06,182.61,182.5,3.03]
[1755563134053,3.97396697,182.6,182.5,3.03]
[1755563134249,3.06,182.61,182.5,3.03]
[1755563134458,3.97372346,182.6,182.5,3.03]
[1755563134655,3.06,182.61,182.5,3.03]
[1755563134956,3.06,182.59,182.44,3.03]
[1755563135147,4.61302629,182.58,182.44,3.03]
[1755563135453,3.06,182.56,182.5,0.03531005]
[1755563135848,3.6,182.56,182.38,3.03]
[1755563136051,3.06,182.54,182.39,5.48]
[1755563136253,3.06,182.54,182.38,3.03]
[1755563136254,3.06,182.52,182.38,3.03]
[1755563136960,3.06,182.5,182.38,3.03]
[1755563137257,3.06,182.5,182.34,3.03]
[1755563137559,3.09675088,182.46,182.34,3.03]
[1755563137749,3.09675088,182.46,182.36,5.481]
[1755563138057,3.06,182.53,182.36,3.03]
[1755563138261,0.04028764,182.43,182.39,5.4798]
[1755563138554,3.06,182.5,182.36,3.03]
[1755563138945,0.03756971,182.43,182.36,3.03]
[1755563139462,3.06,182.47,182.36,8.511]
[1755563139650,0.03515867,182.41,182.32,9.43853382]
[1755563139961,0.03515867,182.41,182.33,3.03]
[1755563140461,3.06,182.4,182.29,3.03]
[1755563141354,0.0383253,182.36,182.29,8.5131]
[1755563141656,0.0383253,182.36,182.29,3.03]
[1755563142052,0.0383253,182.36,182.3,5.4826]
[1755563142359,0.0383253,182.36,182.29,3.03]
[1755563142555,3.06,182.35,182.23,3.03]
[1755563143360,0.03840697,182.31,182.23,3.03]
[1755563144655,0.03840697,182.31,182.24,3.03]
[1755563144850,3.06,182.39,182.24,3.03]
[1755563144851,3.06,182.39,182.25,0.03457633]
[1755563145050,4.79936694,182.38,182.25,0.03457633]
[1755563145251,4.79443176,182.37,182.26,3.03]
[1755563145451,3.06,182.39,182.26,3.03]
[1755563145653,4.79122653,182.36,182.26,3.03]
[1755563145851,4.79122653,182.36,182.23,9.43853382]
[1755563145852,3.06,182.39,182.24,3.03]
[1755563146159,3.06,182.39,182.3,3.03]
[1755563146656,3.06,182.37,182.24,3.03]
[1755563146850,4.78872677,182.38,182.24,3.03]
[1755563146851,4.78872677,182.36,182.33,0.04106037]
[1755563147051,8.5411,182.36,182.28,5.4834]
[1755563147557,3.06,182.36,182.27,3.03]
[1755563147755,3.06,182.36,182.3,0.03642591]
[1755563149557,3.06,182.41,182.3,0.03642591]
[1755563149760,4.78443235,182.4,182.3,3.06642591]
[1755563150053,4.78443235,182.39,182.3,3.03]
[1755563150254,4.78425286,182.38,182.3,3.03]
[1755563150453,4.78425286,182.37,182.26,3.03]
[1755563150764,3.06,182.34,182.33,0.03709015]
[1755563151149,3.06,182.36,182.33,0.03709015]
[1755563151454,171.66135762,182.47,182.33,0.03709015]
[1755563151455,3.06,182.34,182.33,0.03709015]
[1755563151654,3.06,182.34,182.26,3.03]
[1755563151966,3.06,182.32,182.18,3.03]
[1755563152160,2.89,182.3,182.16,5.487]
[1755563152460,2.89,182.28,182.13,3.91506003]
[1755563152656,4.7792689,182.27,182.14,2.96]
[1755563152861,2.89,182.28,182.14,2.96]
[1755563153161,4.77950547,182.27,182.17,5.4865]
[1755563153359,4.77950547,182.26,182.14,2.96]
[1755563153561,0.03714872,182.23,182.14,2.96]
[1755563153754,0.03714872,182.23,182.16,5.487]
[1755563153955,0.03714872,182.23,182.14,2.96]
[1755563154567,0.03714872,182.23,182.17,5.4867]
[1755563155157,0.03714872,182.23,182.16,5.4871]
[1755563155362,0.03714872,182.23,182.14,2.96]
[1755563157261,0.03714872,182.23,182.11,2.96]
[1755563157467,0.03714872,182.23,182.16,2.96]
[1755563157664,2.89,182.33,182.23,5.485]
[1755563157964,0.03876656,182.21,182.2,2.96]
[1755563158260,2.89,182.28,182.2,2.96]
[1755563158451,4.77969633,182.27,182.2,2.96]
[1755563158658,0.03593795,182.22,182.2,2.96]
[1755563158960,2.89,182.28,182.21,2.96]
[1755563159160,4.7799017,182.27,182.16,2.96]
[1755563159357,0.03651589,182.23,182.16,2.96]
[1755563160267,4.78396151,182.22,182.16,2.96]
[1755563160564,4.78433595,182.21,182.13,9.43853382]
[1755563160764,0.03651589,182.23,182.13,9.43853382]
[1755563160967,5.4853,182.23,182.17,5.4865]
[1755563161161,2.89,182.25,182.14,2.96]
[1755563161463,0.04074482,182.2,182.14,2.96]
[1755563161654,2.89,182.31,182.19,2.96]
[1755563161965,8.6921265,182.3,182.19,2.96]
[1755563162162,8.69534879,182.29,182.19,2.96]
[1755563162373,368.42,182.38,182.19,2.96]
[1755563162374,4.78950313,182.28,182.19,2.96]
[1755563162658,4.78950313,182.27,182.19,2.96]
[1755563162864,4.78950313,182.26,182.19,2.96]
[1755563163066,2.89,182.32,182.22,3.001989]
[1755563163260,4.74910854,182.31,182.22,3.001989]
[1755563163460,4.74910854,182.3,182.22,3.001989]
[1755563163761,4.74910854,182.29,182.22,3.001989]
[1755563163960,2.89,182.37,182.23,12.39853382]
[1755563164160,8.66096104,182.36,182.23,12.39853382]
[1755563164463,8.66096104,182.35,182.24,2.96]
[1755563164665,4.74990968,182.34,182.28,0.03973638]
[1755563164865,4.74990968,182.33,182.28,2.99973638]
[1755563165170,2.89,182.41,182.31,2.96]
[1755563165461,4.75907335,182.4,182.39,5.4802]
[1755563165667,453.09719121,182.49,182.39,2.96]
[1755563165963,5.4784,182.45,182.4,5.4796]
[1755563166268,2.89,182.48,182.34,2.96]
[1755563166469,3.92204448,182.47,182.41,0.03974156]
[1755563166770,2.89,182.48,182.41,0.03974156]
[1755563167163,2.89,182.55,182.41,0.03974156]
[1755563167365,2.89,182.53,182.41,0.03974156]
[1755563167669,2.89,182.51,182.37,2.96]
[1755563167876,2.89,182.49,182.45,0.03737088]
[1755563168068,2.89,182.46,182.45,0.03737088]
[1755563168272,2.89,182.46,182.39,5.4802]
[1755563168273,6.81297056,182.46,182.39,5.4802]
[1755563168470,2.89,182.46,182.39,5.4802]
[1755563168765,2.89,182.45,182.44,0.04073592]
[1755563169167,2.89,182.53,182.44,0.04073592]
[1755563169372,2.89,182.51,182.44,0.04073592]
[1755563169584,3.92310131,182.5,182.44,0.04073592]
[1755563169772,3.96065601,182.49,182.32,371.5]
[1755563169967,6.81310131,182.48,182.32,371.5]
[1755563170166,2.89,182.46,182.32,2.96]
[1755563170369,3.92310131,182.45,182.32,2.96]
[1755563170777,2.89,182.51,182.35,2.96]
[1755563170970,3.92449804,182.5,182.39,9.43853382]
[1755563171274,2.89,182.51,182.39,9.43853382]
[1755563171275,2.89,182.51,182.41,0.04135314]
[1755563171478,3.92654838,182.5,182.41,0.04135314]
[1755563171673,2.89,182.51,182.41,0.04135314]
[1755563171871,2.89,182.49,182.41,0.04135314]
[1755563172073,3.92736087,182.48,182.41,0.04135314]
[1755563172273,3.92736087,182.47,182.35,2.96]
[1755563172477,3.92736087,182.46,182.37,5.4808]
[1755563172672,2.89,182.49,182.43,0.04185808]
[1755563172976,2.89,182.47,182.43,0.04185808]
[1755563173174,2.89,182.45,182.43,0.04185808]
[1755563173367,6.02135762,182.52,182.43,0.04185808]
[1755563173572,2.89,182.5,182.36,5.4811]
[1755563173776,2.89,182.48,182.46,0.04202616]
[1755563173972,0.03603896,182.45,182.36,5.4811]
[1755563174172,0.03603896,182.45,182.35,8.4414]
[1755563174372,2.89,182.47,182.35,8.4414]
[1755563174577,3.93044928,182.46,182.35,8.4414]
[1755563174778,3.93044928,182.45,182.35,2.96]
[1755563175079,6.82044928,182.44,182.28,2.96]
[1755563175279,0.04062275,182.42,182.32,5.4822]
[1755563175474,5.4805,182.39,182.32,5.4822]
[1755563175980,5.51859081,182.39,182.32,5.4822]
[1755563176369,5.4806,182.38,182.32,5.4822]
[1755563176872,0.03809081,182.39,182.31,2.96]
[1755563177581,0.03809081,182.39,182.37,2.96]
[1755563177879,2.89,182.44,182.37,2.96]
[1755563178179,0.0351428,182.4,182.36,5.4809]
[1755563178876,5.5151428,182.4,182.36,2.96]
[1755563179088,0.0351428,182.4,182.32,2.96]
[1755563179680,2.89,182.44,182.32,2.96]
[1755563179681,0.03522953,182.38,182.32,2.96]
[1755563180775,0.03522953,182.38,182.33,8.442]
[1755563180979,0.03522953,182.38,182.28,2.96]
[1755563181182,2.89,182.44,182.33,2.96]
[1755563181481,0.03776546,182.35,182.28,2.96]
[1755563181782,2.89,182.4,182.31,5.4824]
[1755563181977,2.89,182.4,182.27,9.43853382]
[1755563181978,0.04165014,182.33,182.27,9.43853382]
[1755563182377,2.89,182.4,182.31,5.4825]
[1755563182577,0.04077721,182.32,182.31,5.4825]
[1755563182772,0.04077721,182.32,182.31,8.4825]
[1755563182979,2.89,182.4,182.31,3.0]
[1755563183176,0.03520907,182.33,182.32,3.0]
[1755563183380,2.89,182.45,182.34,0.03594253]
[1755563183585,3.94990488,182.44,182.34,0.03594253]
[1755563183785,3.94990488,182.43,182.32,3.0]
[1755563183981,2.89,182.45,182.32,3.0]
[1755563184184,3.95007507,182.44,182.32,3.0]
[1755563184381,3.95007507,182.43,182.32,3.0]
[1755563184589,2.89,182.45,182.36,5.481]
[1755563184778,3.95045973,182.44,182.32,3.0]
[1755563185086,2.89,182.45,182.33,3.0]
[1755563185586,2.89,182.45,182.37,0.03990517]
[1755563186083,2.89,182.43,182.37,0.03990517]
[1755563186382,2.89,182.41,182.34,5.4815]
[1755563186581,2.89,182.41,182.33,3.0]
[1755563186776,6.02135762,182.49,182.38,0.04014571]
[1755563187080,2.89,182.4,182.33,3.0]
[1755563187587,5.4804,182.39,182.34,5.4815]
[1755563188086,8.3704,182.39,182.35,0.03574182]
[1755563188690,8.3704,182.39,182.35,5.51714182]
[1755563189785,6.02135762,182.49,182.35,0.03574182]
[1755563189786,2.89,182.38,182.35,0.03574182]
[1755563189991,8.91135762,182.49,182.35,0.03574182]
[1755563190192,2.89,182.47,182.29,3.0]
[1755563190491,8.3705,182.39,182.29,3.0]
[1755563190678,2.89,182.39,182.29,3.0]
[1755563190876,8.3712,182.37,182.32,5.4824]
[1755563191092,2.89,182.36,182.29,3.0]
[1755563191388,8.3715,182.36,182.31,5.4826]
[1755563191791,8.3715,182.36,182.31,3.0]
[1755563191992,8.3715,182.36,182.32,5.4823]
[1755563192293,2.89,182.36,182.27,3.0]
[1755563192591,2.89,182.36,182.28,5.4836]
[1755563193090,5.4826,182.32,182.28,5.4836]
[1755563193591,2.89,182.36,182.28,5.4836]
[1755563193789,2.89,182.36,182.29,5.4832]
[1755563193988,2.89,182.36,182.26,3.0]
[1755563194294,2.89,182.36,182.29,5.4833]
[1755563194492,2.89,182.36,182.26,3.0]
[1755563194985,2.89,182.36,182.31,5.4826]
[1755563195880,2.89,182.41,182.31,3.0]
[1755563196286,2.89,182.41,182.26,3.0]
[1755563196489,2.89,182.41,182.31,5.4825]
[1755563196990,3.85721107,182.4,182.28,5.4835]
[1755563197191,2.89,182.41,182.28,5.4835]
[1755563197397,2.89,182.39,182.28,5.4835]
[1755563197988,2.89,182.39,182.27,5.4838]
[1755563198189,2.89,182.39,182.26,3.0]
[1755563198498,2.89,182.37,182.22,147.16]
[1755563198992,2.89,182.37,182.23,3.0]
[1755563199198,2.89,182.37,182.25,3.0]
[1755563199691,2.89,182.41,182.25,3.0]
[1755563199987,2.89,182.41,182.29,9.43853382]
[1755563200289,2.89,182.41,182.3,3.0]
[1755563200986,5.4803,182.39,182.35,5.4813]
[1755563201188,2.89,182.38,182.3,3.0]
[1755563201391,2.89,182.42,182.3,3.0]
[1755563201694,2.89,182.42,182.32,0.035191]
[1755563202195,8.3707,182.38,182.33,5.4819]
[1755563202393,8.3707,182.38,182.33,8.4819]
[1755563202689,2.89,182.48,182.36,5.4811]
[1755563202894,3.86825382,182.47,182.36,5.4811]
[1755563203094,2.89,182.43,182.35,5.4814]
[1755563203595,5.4806,182.38,182.32,3.0]
[1755563203791,2.89,182.4,182.32,3.0]
[1755563204091,5.4811,182.37,182.32,8.4821]
[1755563204290,2.89,182.37,182.32,8.4821]
[1755563204485,2.89,182.36,182.29,9.43853382]
[1755563204891,2.89,182.36,182.32,5.4823]
[1755563205193,2.89,182.46,182.32,5.4823]
[1755563205496,8.3711,182.37,182.32,5.4823]
[1755563205796,8.3711,182.37,182.32,8.4823]
[1755563206396,5.4811,182.37,182.33,8.482]
[1755563206596,5.4812,182.36,182.29,12.43853382]
[1755563207098,2.89,182.39,182.3,3.0]
[1755563207987,2.89,182.45,182.3,3.0]
[1755563208192,3.87932943,182.44,182.3,3.0]
[1755563208494,5.48,182.4,182.35,8.4812]
[1755563209197,2.89,182.42,182.35,3.0]
[1755563209397,3.88283137,182.41,182.35,3.0]
[1755563209591,2.89,182.42,182.35,3.0]
[1755563209787,3.88291311,182.41,182.35,3.0]
[1755563209994,2.89,182.39,182.33,5.4819]
[1755563210490,2.89,182.39,182.34,3.0]
[1755563211001,5.4807,182.38,182.34,3.0]
[1755563211299,5.4807,182.38,182.35,0.03769299]
[1755563212499,5.4807,182.38,182.35,5.51909299]
[1755563212798,2.87,182.38,182.35,0.03769299]
[1755563213397,5.4811,182.37,182.35,0.03769299]
[1755563213796,2.87,182.38,182.35,0.03769299]
[1755563214195,2.87,182.37,182.35,0.03769299]
[1755563214400,2.87,182.36,182.35,0.03769299]
[1755563214602,2.87,182.36,182.29,12.60853382]
[1755563214793,2.87,182.36,182.31,5.4825]
[1755563215094,5.4816,182.35,182.31,3.17]
[1755563215302,5.4816,182.35,182.32,3.17]
[1755563215595,2.87,182.39,182.29,9.43853382]
[1755563215800,3.88610233,182.38,182.29,9.43853382]
[1755563215997,2.87,182.39,182.29,9.43853382]
[1755563216201,5.4818,182.34,182.3,3.17]
[1755563216500,2.87,182.39,182.31,3.17]
[1755563216802,3.88822725,182.38,182.31,3.17]
[1755563217097,3.88822725,182.37,182.31,3.17]
[1755563217397,2.87,182.35,182.27,3.17]
[1755563217601,3.88759159,182.34,182.27,3.17]
[1755563217900,2.87,182.35,182.27,8.6538]
[1755563218093,3.88680873,182.34,182.27,8.6538]
[1755563218294,2.87,182.35,182.27,8.6538]
[1755563218495,3.88686163,182.34,182.27,8.6538]
[1755563218795,2.87,182.35,182.27,8.6538]
[1755563218996,3.88686163,182.34,182.27,8.6538]
[1755563219200,2.87,182.35,182.27,8.6538]
[1755563219401,3.88726149,182.34,182.27,8.6538]
[1755563219701,3.88786,182.33,182.27,8.6538]
[1755563219898,2.87,182.35,182.27,3.17]
[1755563220098,3.88932233,182.34,182.27,3.17]
[1755563220299,2.87,182.32,182.24,9.43853382]
[1755563220600,9.03448958,182.42,182.2,3.17]
[1755563220601,2.87,182.3,182.2,3.17]
[1755563220805,2.87,182.3,182.26,0.04107348]
[1755563220995,6.02135762,182.36,182.26,0.04107348]
[1755563221196,2.87,182.34,182.26,0.04107348]
[1755563221396,3.8883161,182.33,182.26,0.04107348]
[1755563221598,6.02135762,182.37,182.26,3.21107348]
[1755563221599,2.87,182.37,182.26,3.21107348]
[1755563221900,2.87,182.35,182.26,3.17]
[1755563222107,0.04011315,182.33,182.26,3.17]
[1755563222300,2.91011315,182.33,182.3,0.03930268]
[1755563222495,0.04011315,182.33,182.3,0.03930268]
[1755563222896,2.87,182.4,182.32,3.17]
[1755563223102,3.88671507,182.39,182.32,3.17]
[1755563223306,3.88671507,182.38,182.32,3.17]
[1755563223505,2.87,182.36,182.29,3.17]
[1755563223695,6.02135762,182.44,182.29,3.17]
[1755563224000,2.87,182.42,182.29,3.17]
[1755563224199,2.87,182.4,182.35,0.03544941]
[1755563224402,2.87,182.38,182.35,0.03544941]
[1755563224706,2.87,182.36,182.35,0.03544941]
[1755563224997,3.88732601,182.36,182.35,0.03544941]
[1755563225303,6.75732601,182.36,182.25,3.17]
[1755563225602,3.88732601,182.35,182.25,3.17]
[1755563225902,3.88732601,182.34,182.25,3.17]
[1755563226099,2.87,182.36,182.25,3.17]
[1755563226304,3.88715072,182.35,182.25,3.17]
[1755563226502,3.88715072,182.34,182.28,0.04097472]
[1755563226701,2.87,182.31,182.28,0.04097472]
[1755563226996,2.87,182.31,182.25,8.6542]
[1755563227197,2.87,182.3,182.28,0.03724323]
[1755563227400,2.87,182.29,182.28,0.03724323]
[1755563227599,2.87,182.29,182.25,3.17]
[1755563227900,2.87,182.33,182.27,0.03459012]
[1755563228100,2.87,182.32,182.27,0.03459012]
[1755563228305,2.87,182.36,182.28,3.17]
[1755563228599,0.03755368,182.32,182.29,3.17]
[1755563229005,2.87,182.37,182.29,8.653]
[1755563229195,0.03821004,182.32,182.29,8.68956588]
[1755563229392,0.03821004,182.32,182.29,3.20656588]
[1755563229700,0.03821004,182.32,182.29,0.03656588]
[1755563230606,0.03821004,182.32,182.3,3.17]
[1755563230906,0.03821004,182.32,182.3,8.6529]
[1755563231204,2.87,182.41,182.31,3.17]
[1755563231403,3.88892095,182.4,182.31,8.6524]
[1755563231601,3.88892095,182.39,182.31,8.6524]
[1755563231801,3.88892095,182.38,182.31,8.6524]
[1755563232006,3.88892095,182.37,182.31,8.6524]
[1755563232307,3.88892095,182.37,182.33,0.03575736]
[1755563232504,2.87,182.36,182.33,0.03575736]
[1755563233005,2.87,182.42,182.33,0.03575736]
[1755563233198,3.8880628,182.41,182.33,0.03575736]
[1755563233399,3.8880628,182.4,182.33,0.03575736]
[1755563233703,3.8880628,182.39,182.33,5.51785736]
[1755563233999,3.8880628,182.38,182.35,3.17]
[1755563234193,2.87,182.42,182.36,3.17]
[1755563234396,3.88905903,182.41,182.36,3.17]
[1755563234608,5.4806,182.39,182.37,0.03989634]
[1755563234903,2.87,182.4,182.37,0.03989634]
[1755563235101,3.88926945,182.39,182.37,0.03989634]
[1755563235304,6.02135762,182.46,182.37,0.03989634]
[1755563235507,2.87,182.39,182.37,0.03989634]
[1755563235807,5.4806,182.38,182.37,0.03989634]
[1755563235998,8.3506,182.38,182.37,0.03989634]
[1755563236399,12.23945848,182.38,182.37,0.03989634]
[1755563241010,2.87,182.37,182.28,5.4835]
[1755563241209,3.88885848,182.36,182.29,3.17]
[1755563241903,2.87,182.41,182.29,3.17]
[1755563242214,3.88919559,182.4,182.32,8.6423]
[1755563242405,3.88919559,182.39,182.32,8.6423]
[1755563242607,3.88919559,182.38,182.32,8.6423]
[1755563242913,3.88919559,182.37,182.34,3.16]
[1755563243211,2.87,182.41,182.34,3.16]
[1755563243413,3.88937403,182.4,182.34,3.16]
[1755563243610,3.88937403,182.39,182.34,3.16]
[1755563243806,3.88937403,182.38,182.27,9.43853382]
[1755563244008,3.18,182.44,182.28,3.16]
[1755563244204,3.89036594,182.43,182.28,3.16]
[1755563244407,3.89036594,182.42,182.34,5.4815]
[1755563244712,3.89036594,182.41,182.34,5.4815]
[1755563244912,3.89036594,182.4,182.36,3.16]
[1755563245113,3.18,182.44,182.36,3.16]
[1755563245312,3.88981846,182.43,182.36,3.16]
[1755563245616,7.06981846,182.42,182.28,3.16]
[1755563245907,3.18,182.4,182.27,9.43853382]
[1755563246115,3.88981846,182.39,182.28,3.16]
[1755563246312,3.88981846,182.38,182.28,3.16]
[1755563246513,3.18,182.4,182.28,3.16]
[1755563246713,3.88956012,182.39,182.28,3.16]
[1755563247013,3.88956012,182.38,182.28,3.16]
[1755563247215,3.18,182.4,182.28,3.16]
[1755563247517,3.18,182.38,182.28,3.16]
[1755563247812,3.88961035,182.37,182.3,5.4828]
[1755563248013,3.88928435,182.36,182.28,3.16]
[1755563248214,3.18,182.38,182.28,3.16]
[1755563248410,3.88971625,182.37,182.29,5.4832]
[1755563248609,3.18,182.38,182.29,5.4832]
[1755563248610,3.88971625,182.36,182.29,5.4832]
[1755563248807,3.18,182.38,182.28,3.16]
[1755563249115,6.02135762,182.43,182.28,3.16]
[1755563249116,3.18,182.35,182.28,3.16]
[1755563249316,3.88966056,182.34,182.28,3.16]
[1755563251818,3.18,182.39,182.23,3.16]
[1755563252014,3.8865551,182.38,182.23,3.16]
[1755563252220,3.8865551,182.37,182.23,3.16]
[1755563252414,3.8865551,182.36,182.23,3.16]
[1755563252717,3.18,182.39,182.23,3.16]
[1755563252913,3.88702623,182.38,182.23,3.16]
[1755563253113,3.88702623,182.37,182.28,3.16]
[1755563253316,3.18,182.39,182.32,5.4822]
[1755563253619,3.18,182.39,182.28,3.16]
[1755563253620,3.8874413,182.38,182.28,3.16]
[1755563253823,3.18,182.39,182.28,3.16]
[1755563254122,3.18,182.43,182.35,3.16]
[1755563254415,3.88830786,182.42,182.35,3.16]
[1755563254620,3.88830786,182.41,182.35,3.16]
[1755563254823,7.06830786,182.4,182.31,3.16]
[1755563255126,3.18,182.38,182.36,0.03785537]
[1755563255312,3.18,182.42,182.36,0.03785537]
[1755563255516,3.88849797,182.41,182.36,0.03785537]
[1755563255817,371.64,182.46,182.38,3.16]
[1755563256123,3.88930475,182.45,182.38,3.16]
[1755563256422,3.88930475,182.44,182.4,0.03706514]
[1755563256620,3.88930475,182.43,182.4,0.03706514]
[1755563256817,371.64,182.46,182.4,0.03706514]
[1755563257021,3.18,182.44,182.4,0.03706514]
[1755563257222,3.88845932,182.43,182.4,0.03706514]
[1755563257418,368.46,182.46,182.4,0.03706514]
[1755563257618,3.88770306,182.45,182.4,0.03706514]
[1755563257926,3.18,182.41,182.4,0.03706514]
[1755563258227,7.06770306,182.41,182.4,0.03706514]
[1755563258822,3.88770306,182.41,182.4,0.03706514]
[1755563259026,3.18,182.43,182.4,0.03706514]
[1755563259330,368.46,182.46,182.4,0.03706514]
[1755563259331,3.88711916,182.42,182.4,0.03706514]
[1755563259531,368.46,182.46,182.4,0.03706514]
[1755563259731,3.18,182.43,182.4,0.03706514]
[1755563259932,3.88657936,182.42,182.4,0.03706514]
[1755563260235,3.18,182.45,182.4,0.03706514]
[1755563260533,368.46,182.46,182.4,0.03706514]
[1755563260534,3.18,182.41,182.4,0.03706514]
[1755563260937,7.06610942,182.41,182.4,0.03706514]
[1755563261130,7.06610942,182.41,182.29,12.59853382]
[1755563261336,7.06610942,182.4,182.29,3.16]
[1755563261640,3.88610942,182.39,182.29,3.16]
[1755563261929,3.18,182.38,182.25,12.59853382]
[1755563262136,3.18,182.36,182.25,12.59853382]
[1755563262337,3.88610942,182.35,182.25,12.59853382]
[1755563262532,0.04079112,182.33,182.27,5.4838]
[1755563263234,0.04079112,182.33,182.28,5.4835]
[1755563263539,0.04079112,182.33,182.29,3.16]
[1755563263934,0.04079112,182.33,182.31,3.16]
[1755563264937,0.04079112,182.33,182.26,3.16]
[1755563265837,0.04079112,182.33,182.29,5.483]
[1755563266238,0.04079112,182.33,182.3,3.16]
[1755563267937,3.22079112,182.33,182.27,5.4838]
[1755563269133,3.22079112,182.33,182.2,377.93853382]
[1755563269340,3.22079112,182.33,182.21,3.16]
[1755563269540,3.18,182.33,182.21,3.16]
[1755563269838,0.03660564,182.29,182.21,3.16]
[1755563272445,3.18,182.37,182.29,5.483]
[1755563272636,3.89147872,182.36,182.27,3.05]
[1755563272832,3.89147872,182.35,182.27,3.05]
[1755563273044,3.18,182.37,182.27,3.05]
[1755563273343,3.89200977,182.36,182.27,3.05]
[1755563273536,3.18,182.37,182.3,5.4828]
[1755563273736,3.89162433,182.36,182.3,0.04120478]
[1755563273937,3.18,182.37,182.3,0.04120478]
[1755563274136,3.8916229,182.36,182.3,5.52410478]
[1755563274342,3.18,182.34,182.3,0.04120478]
[1755563275440,142.52,182.4,182.3,0.04120478]
[1755563275641,3.18,182.33,182.3,0.04120478]
[1755563277647,142.52,182.4,182.3,0.04120478]
[1755563277841,3.18,182.32,182.3,0.04120478]
[1755563279050,3.18,182.39,182.3,0.04120478]
[1755563279249,3.18,182.37,182.3,0.04120478]
[1755563279445,3.18,182.35,182.3,0.04120478]
[1755563279646,3.18,182.31,182.3,0.04120478]
[1755563279845,148.54135762,182.4,182.3,0.04120478]
[1755563280042,10.6972519,182.39,182.3,0.04120478]
[1755563280355,3.18,182.37,182.3,0.04120478]
[1755563280551,3.18,182.34,182.3,0.04120478]
[1755563280939,3.18,182.32,182.3,0.04120478]
[1755563281138,3.18,182.31,182.3,0.04120478]
[1755563281643,3.18,182.33,182.3,0.04120478]
[1755563281950,6.02135762,182.39,182.3,0.04120478]
[1755563282152,3.18,182.37,182.3,0.04120478]
[1755563282349,3.18,182.35,182.3,0.04120478]
[1755563282549,3.18,182.33,182.3,0.04120478]
[1755563282848,3.18,182.31,182.3,0.04120478]
[1755563283040,7.07424536,182.31,182.3,0.04120478]
[1755563284143,3.18,182.31,182.3,0.04120478]
[1755563285553,7.07268436,182.31,182.3,0.04120478]
[1755563285748,3.18,182.31,182.3,0.04120478]
[1755563285943,7.07311984,182.31,182.3,0.04120478]
[1755563286247,3.18,182.31,182.3,0.04120478]
[1755563287350,153.8868502,182.4,182.3,0.04120478]